Cogmind - Beta 13 @@@ ROGUE MODE // 2024.04.11 @ 13:22:47 Player: Oldman Pu Result: Destroyed by EX-EGQ(R) with Subdweller Beam Cannon Performance ------------- Evolutions (0) 0 Regions Visited (2) 400 Robots Destroyed (33) 165 Value Destroyed (737) 737 Prototype IDs (1) 20 Alien Tech Used (0) 0 Bonus (0) 0 TOTAL SCORE: 1322 Bonus ------- None Cogmind --------- Core Integrity 0/250 Matter 267/300 Energy 80/100 System Corruption 0% Temperature Cool (9) Movement Core (900) Ox17 Location -10/Subcaves Parts ------- > --- POWER (1) -------- Subdweller Power Source > --- PROPULSION (2) --- (None) > --- UTILITY (2) ------ Improved Heat Sink High-capacity Storage Unit > --- WEAPON (2) ------- Beam Cannon Beam Cannon > --- INVENTORY (20) --- Heat Sink High-capacity Matter Pod (200) Light Armor Plating Improved Medium Laser Improved Medium Laser Improved Medium Laser Makeshift Laser Beam Cannon Beam Cannon Beam Cannon Battle Rifle Subdweller Machine Gun Subdweller Machine Gun Makeshift Shrapnel Gun Shrapnel Trap Peak State ------------ > --- POWER ------------ Subdweller Power Source > --- PROPULSION ------- Subdweller Monowheel Subdweller Monowheel > --- UTILITY ---------- Improved Heat Sink High-capacity Storage Unit > --- WEAPON ----------- Improved Medium Laser Improved Medium Laser > --- INVENTORY -------- Heat Sink High-capacity Matter Pod Light Armor Plating Improved Medium Laser Beam Cannon Beam Cannon Beam Cannon Beam Cannon Beam Cannon Subdweller Machine Gun [Rating: 17] Favorites ----------- Power Subdweller Power Source Engine Subdweller Power Source Propulsion Wheel Leg Aluminum Leg Wheel Wheel Utility Improved Heat Sink Device Improved Heat Sink Storage High-capacity Storage Unit Weapon Beam Cannon Energy Gun Improved Medium Laser Energy Cannon Beam Cannon Ballistic Gun Assault Rifle Build | -11 -10 -10 ------- Run | Yrd Mat Sub Slots Evolved . | . . . Power . | . . . Propulsion . | . . . Utility . | . . . Weapon . | . . . Parts Attached 35 | 6 20 9 Power 5 | 1 2 2 Engine 5 | 1 2 2 Core . | . . . Reactor . | . . . Propulsion 14 | 2 9 3 Treads . | . . . Leg 2 | . 2 . Wheel 12 | 2 7 3 Hover . | . . . Flight . | . . . Utility 5 | 1 4 . Device 1 | . 1 . Storage 4 | 1 3 . Processor . | . . . Hackware . | . . . Protection . | . . . Artifact . | . . . Weapon 11 | 2 5 4 Energy Gun 3 | . 2 1 Energy Cannon 4 | . 2 2 Ballistic Gun 4 | 2 1 1 Ballistic Cannon . | . . . Launcher . | . . . Special Weapon . | . . . Impact Weapon . | . . . Slashing Weapon . | . . . Piercing Weapon . | . . . Special Melee Weapon . | . . . Unidentified Prototypes 1 | . 1 . Parts Lost 6 | . 2 4 Power 2 | . 1 1 Propulsion 3 | . 1 2 Utility . | . . . Weapon 1 | . . 1 Highest Loss Streak 3 | . 1 3 To Critical Strikes . | . . . Average Slot Usage (%) 82 | . 98 75 Engine 13 | . 14 13 Leg 3 | . 9 . Wheel 9 | . 17 5 Device 13 | . 11 14 Storage 14 | . 15 14 Energy Gun 8 | . 10 7 Energy Cannon 16 | . 7 20 Ballistic Gun 3 | . 9 . Naked Turns . | . . . Heaviest Build 52 | 14 52 52 Greatest Support 40 | 26 40 30 Greatest Overweight (x) 17 | . 2 17 Average Overweight (x) 3 | . . 6 Largest Inventory Capacity 20 | 8 20 20 Average Capacity 16 | 7 10 20 Most Carried 15 | 1 12 15 Average Carried 12 | . 8 14 Final Capacity 20 | 8 20 20 Final Carried 15 | 1 12 15 Class Distribution -------------------- 83% | Mutant 16% | Scavenger-Mutant Dominant Class ---------------- Mutant | -10/Materials Mutant | -10/Subcaves Resources | -11 -10 -10 ----------- Run | Yrd Mat Sub Matter Collected 881 | 146 690 45 Remotely . | . . . Salvage Created 1100 | . 890 210 Parts 71 | . 58 13 Haulers Intercepted . | . . . Recyclers Shooed 1 | . 1 . Parts Field Recycled . | . . . Retrieved Matter . | . . . Parts Self-Destructed 17 | . . 17 Prevented . | . . . Kills | -11 -10 -10 ------- Run | Yrd Mat Sub Combat Hostiles Destroyed 25 | . 20 5 Guns 17 | . 12 5 Cannons 8 | . 8 . Classes Destroyed 9 | . 8 1 Worker 2 | . 2 . Builder 1 | . 1 . Recycler 2 | . 2 . Operator 1 | . 1 . Watcher 2 | . 2 . Swarmer 10 | . 9 1 Grunt 8 | . 8 . Sentry 1 | . . 1 Subdweller 6 | . 3 3 Best Kill Streak 7 | . 7 2 Combat Bots Only 6 | . 6 2 Max Kills in Single Turn 2 | . 2 1 Gunslinging . | . . . Exploded . | . . . Melee . | . . . Uniques/NPCs Destroyed . | . . . Combat | -11 -10 -10 -------- Run | Yrd Mat Sub Hostile Shots Fired 108 | . 84 24 Missed 30 | . 22 8 Damage Taken 1030 | . 669 361 Core 255 | . 147 108 Absorbed by Shields . | . . . Core Remaining (%) 100 | 100 . . Volleys Fired 95 | . 70 25 Largest 2 | . 2 2 Hottest 120 | . 112 120 Shots Fired 190 | . 140 50 Gun 132 | . 98 34 Cannon 58 | . 42 16 Launcher . | . . . Special . | . . . Kinetic 63 | . 62 1 Thermal 127 | . 78 49 Explosive . | . . . Electromagnetic . | . . . Robot Hit Streak 29 | . 25 29 Robot Miss Streak 12 | . 12 . Penetration Max . | . . . Secondary Targets . | . . . Shots Hit Robots 102 | . 74 28 Core Hits 45 | . 36 9 Critical Kills . | . . . Critical Parts Destroyed 1 | . 1 . Critical Strikes 5 | . 3 2 Burn 4 | . 2 2 Destroy 1 | . 1 . Melee Attacks . | . . . Impact . | . . . Slashing . | . . . Piercing . | . . . Sneak Attacks . | . . . Combat Hostiles . | . . . Follow-up Attacks . | . . . Damage Inflicted 1591 | . 1186 405 Guns 1152 | . 747 405 Cannons 439 | . 439 . Explosions . | . . . Melee . | . . . Ramming . | . . . Kinetic 285 | . 285 . Thermal 1306 | . 901 405 Explosive . | . . . Electromagnetic . | . . . Impact . | . . . Slashing . | . . . Piercing . | . . . Highest Corruption . | . . . Average Corruption . | . . . Corruption Purged . | . . . Corruption Blocked . | . . . Overload Shots . | . . . Overflow Damage . | . . . Projectiles . | . . . Explosions . | . . . Melee . | . . . Knockbacks . | . . . Impact . | . . . Kinetic . | . . . Secondary . | . . . Self-Inflicted Damage . | . . . Shots . | . . . Rammed . | . . . Targets Rammed . | . . . Kicked . | . . . Crushed . | . . . Highest Temperature 96 | . 96 . Average Temperature 33 | . 33 . Received Heat Transfer 246 | . 168 78 Siege Activations . | . . . Robots Corrupted . | . . . Combat Hostiles . | . . . Parts Fried . | . . . Impact Corruptions . | . . . Robots Melted . | . . . Combat Hostiles . | . . . Parts Melted 3 | . 1 2 Heat Transferred 3108 | . 2072 1036 Parts Sabotaged . | . . . Parts Stolen . | . . . Parts Stripped . | . . . Power Chain Reactions . | . . . Alert | -11 -10 -10 ------- Run | Yrd Mat Sub Peak Influence 311 | . 311 . Initial . | . . . Average 177 | . 185 . Maximum Alert Level 1 | . 1 . Low Security (%) 62 | 100 61 . Level 1 37 | . 38 . Level 2 . | . . . Level 3 . | . . . Level 4 . | . . . Level 5 . | . . . High Security . | . . . Max Security . | . . . Squads Dispatched 3 | . 3 . Investigation 1 | . 1 . Extermination . | . . . Reinforcement 2 | . 2 . Assault . | . . . Garrison . | . . . Intercept . | . . . Searches Triggered . | . . . Construction Impeded . | . . . Haulers Reinforced . | . . . Active Scanning Responses . | . . . Cargo Convoy Interrupts . | . . . Stealth | -11 -10 -10 --------- Run | Yrd Mat Sub Distress Signals 2 | . 2 . Communications Jammed . | . . . Distress Signals . | . . . Times Spotted 34 | . 27 7 Peak Tracking Total 7 | . 7 2 Tactical Retreats 1 | . 1 . Traps | -11 -10 -10 ------- Run | Yrd Mat Sub Traps Triggered 1 | . 1 . Indirectly . | . . . Trap Hack Attempts . | . . . Triggered . | . . . Disarmed . | . . . Reprogrammed . | . . . Reused . | . . . Traps Extracted . | . . . Installed . | . . . Triggered . | . . . Most Traps Carried 1 | . . 1 Machines | -11 -10 -10 ---------- Run | Yrd Mat Sub Machines Disabled . | . . . Max in Single Turn . | . . . Machines Repaired . | . . . Machines Dismantled . | . . . Machines Sabotaged . | . . . Overloaded Fab Kills . | . . . Hacking | -11 -10 -10 --------- Run | Yrd Mat Sub Machines Accessed 4 | . 3 1 Terminals 3 | . 3 . Fabricators . | . . . Repair Stations . | . . . Recycling Units . | . . . Scanalyzers . | . . . Garrison Access . | . . . Total Hacks 7 | . 6 1 Successful 6 | . 5 1 Failed 1 | . 1 . Catastrophic . | . . . Database Lockouts . | . . . Manual . | . . . Terminals 6 | . 6 . Fabricators . | . . . Repair Stations . | . . . Recycling Units . | . . . Scanalyzers . | . . . Garrison Access . | . . . Terminal Hacks 6 | . 5 1 Record 2 | . 1 1 Branch Access Points 1 | . 1 . Locate Traps 2 | . 2 . Hauler Manifests 1 | . 1 . Fabricator Hacks . | . . . Repair Station Hacks . | . . . Recycling Unit Hacks . | . . . Scanalyzer . | . . . Garrison Access Hacks . | . . . Unauthorized Hacks . | . . . Terminals . | . . . Fabricators . | . . . Repair Stations . | . . . Recycling Units . | . . . Scanalyzers . | . . . Garrison Access . | . . . Data Cores Recovered 1 | . 1 . Used . | . . . Hacking Detections 2 | . 2 . Full Trace Events . | . . . Feedback Events . | . . . Feedback Blocked . | . . . Robot Schematics Acquired . | . . . Robots Built . | . . . Authchips . | . . . Time . | . . . Total Robot Build Rating . | . . . Part Schematics Acquired . | . . . Parts Built . | . . . Authchips . | . . . Time . | . . . Total Part Build Rating . | . . . Parts Repaired . | . . . Time . | . . . Parts Recycled . | . . . Recycled Matter . | . . . Retrieved Matter . | . . . Retrieved Components . | . . . Parts Scanalyzed . | . . . Part Schematics Acquired . | . . . Parts Damaged . | . . . Bothacking | -11 -10 -10 ------------ Run | Yrd Mat Sub Used RIF Installer . | . . . Robots Hacked . | . . . Non-combat . | . . . Combat . | . . . Robot Hacks Applied . | . . . Relay Couplers Released . | . . . Fabnet Peak Effective % . | . . . Robots Rewired . | . . . Allies Hacked . | . . . Hacks Repelled . | . . . Allies | -11 -10 -10 -------- Run | Yrd Mat Sub Total Allies . | . . . Largest Group . | . . . Highest-Rated Group . | . . . Highest-Rated Ally . | . . . Total Orders . | . . . Ally Attacks . | . . . Total Damage . | . . . Kills . | . . . Allies Corrupted . | . . . Allies Melted . | . . . Intel | -11 -10 -10 ------- Run | Yrd Mat Sub Robot Analysis Total . | . . . Derelict Logs Recovered . | . . . Drone Launches . | . . . Drone Recoveries . | . . . Exploration | -11 -10 -10 ------------- Run | Yrd Mat Sub Turns Passed 2904 | 42 881 1981 Spaces Moved 1106 | 38 522 546 Core 158 | 4 . 154 Treads . | . . . Legs 149 | . 149 . Wheels 799 | 34 373 392 Hover . | . . . Flight . | . . . Fastest Speed 50 | 50 90 107 Average Speed 224 | 85 112 340 Slowest Speed 900 | 90 190 900 Overloaded Moves . | . . . Propulsion Burnouts . | . . . Robots Hopped . | . . . Cave-ins Triggered . | . . . Exploration Rate (%) 37 | 2 70 40 Regions Visited 2 Branch Regions 1 Pre-discovered Areas . | . . . Known Exits Taken . | . . . Unknown Exits Taken 2 | 1 1 . Scrap Searched 4 | . . 4 Spaces Dug . | . . . Terrain Destroyed . | . . . Melee . | . . . Projectile . | . . . AOE . | . . . Terrain Rammed . | . . . Walls Destroyed . | . . . Machines Disabled . | . . . Actions | -11 -10 -10 --------- Run | Yrd Mat Sub Total 1336 | 44 676 616 Wait 54 | . 29 25 Move 1104 | 37 521 546 Hop . | . . . Pick Up 26 | 1 18 7 Fast Attach 16 | 6 8 2 Attach 3 | . . 3 Detach 1 | . 1 . Swap 16 | . 12 4 Drop 21 | . 17 4 Fire 95 | . 70 25 Melee . | . . . Ram . | . . . Kick . | . . . Crush . | . . . Escape Stasis . | . . . Rewire . | . . . Trap . | . . . Miscellaneous . | . . . Route ------- -11/Scrapyard -10/Materials (discovered 4 exits: [*Mat] / *Min x2 / *Sub) -10/Subcaves History --------- Turn | Location | Event 20 | -11/Scrapyard | Discovered new exit (range 16) 43 | -11/Scrapyard | Entered Materials 210 | -10/Materials | Discovered new exit (range 16) 315 | -10/Materials | Build established: Mutant 373 | -10/Materials | Discovered new exit (range 16) 556 | -10/Materials | Discovered new exit (range 6) 568 | -10/Materials | Identified exit to Mines 600 | -10/Materials | Derelicts attacked the area 675 | -10/Materials | Core integrity fell below 50% 789 | -10/Materials | Discovered new exit (range 3) 924 | -10/Materials | Entered Subcaves 954 | -10/Subcaves | A swath of the cavern ceiling suddenly collapsed 1012 | -10/Subcaves | Shifting Twisted Machinery released Sub. Power Source 1015 | -10/Subcaves | Lost 3 parts (1p1n1w) 1030 | -10/Subcaves | Shifting Twisted Machinery released Sub. Machine Gun 1262 | -10/Subcaves | Visited Clippyterm 2502 | -10/Subcaves | A swath of the cavern ceiling suddenly collapsed 2902 | -10/Subcaves | Core integrity fell below 20% 2905 | -10/Subcaves | Destroyed by EX-EGQ(R) with Subdweller Beam Cannon Last Messages --------------- 01345_ Found Mak. Laser. 01345_ Found 21 Matter. 01348_ Acquired Mak. Laser. 01350_ Searching scrap... 01350_ Found Shrapnel Trap. 01350_ Found 23 Matter. 01356_ Acquired Shrapnel Trap. 01418_ Searching scrap... 01418_ Found Mak. Shrapnel Gun. 01418_ Found Sub. Machine Gun. 01418_ Found 29 Matter. 01420_ Acquired Sub. Machine Gun. 01424_ Acquired Mak. Shrapnel Gun. 01516_ Sub. Monowheel shoots sparks and powers down. 01518_ Dropped Broken Sub. Monowheel. 01542_ Sub. Power Source shoots sparks and powers down. 01609_ Subatomizers dissect the Broken Sub. Monowheel. 01627_ CL-AB2(u) tweaks Twisted Machinery. 01688_ CL-AB2(u) deconstructs Twisted Machinery. A swath of the cavern ceiling suddenly collapses. Map ----- +----------------------------------------------------+ | ???????????????# #?????????????????? | | ??????????????## ##?????????????????? | | ??????????????# ##??????????????????? | | ??????????????# #???????????????????? | | ??????????????# ###?????????????????? | | ??????????????## ### #?????????????????? | | ???????????????##???# #?????????????????? | | ????????????????????## #?????????????????? | | ????????????????????## #?????????????????? | | ????????????????????# #?????????????????? | | ????????????????????## #?????????????????? | | ??????????????????#### ##?????????????????? | | ??????????????????# ##?????????????????? | | ??????????????????# ##????????????????? | | ??????????????????# ### ##???????????????? | | ??????????????????##??# ##??????????????? | | ??????????????????????# ##?????????????? | | ?????????????########## #?????????????? | | ????????????## <## ## #?????????????? | | ????????????#" # #< ## ##?????????????? | | ????????????#%%# #??????????????? | | ????????????# "# #R #??????????????? | | ????????????#%#### #??????????????? | | ????????????#### #??????????????? | | ??????????????## #??????????????? | | ??????????????# @ #??????????????? | | ??????????????# ### #?????????????? | | ??????????????# #### #?????????????? | | ??????????????## ## #?????????????? | | ???????????????# #?# #?????????????? | | ??????????????## #?? #?????????????? | | ??????????????# ##?## #????????????? | | ??????????????# ## #???# ???????????? | | ??????????????## ### #???? ??????????? | | ???????????????# ?# ##????? ???????????? | | ???????????????# ## #?????? #???????????? | | ???????????????####### #???????????????????? | | ????????????????????## ##???????????????????? | | ???????????????????## ##???????????????????? | | ????????????????#### # #???????????????????? | | ???????????????## ##???????????????????? | | ???????????????# ## ###????????????????????? | | ???????????????# ####??????????????????????? | | ???????????????# ###???????????????????????? | | ???????????????## ##??????????????????????? | | ????????????????## #??????????????????????? | | ????#########??### #??????????????????????? | | ???## " """"#### ##??????????????????????? | | ???#""" "" ### ###?????????????????????? | | ???#" " " ## ##????????????????????? | +----------------------------------------------------+ Best States ------------- Heat Dissipation 39 Energy Generation 15 Energy Capacity 250 Matter Stores 300 Matter Capacity 400 Sight Range 16 Terrain Scan Density 10 Evasion (%) 55 Item Schematics ----------------- None Robot Schematics ------------------ None Fabricated ------------ Nothing Alien Tech Used ----------------- None Achievements -------------- None Challenges ------------ None Game ------ Seed InertialHardcellCutter Manual? 0 Play Time 00:18:24 Cumulative 242.8 hours Start 2024.04.11 @ 13:01:37 End 2024.04.11 @ 13:22:47 Sessions 1 Manual Loads 0 Difficulty Rogue Special Mode None Game No. 187 Rogue 175 Adventurer 12 Explorer 0 Win Type - Total 1 Types 1/0/0/0/0/0/0/0/0 Lore% 30 Gallery% 48 Achievement% 35 Wizard Run 0 Options --------- Layout 1 ASCII 0 Keyboard 0 Movement Mouse Keybinds 0 Fullscreen 1 Font 32/SmallcapsGlow Map View 77x35 Zoom Use 0% Tactical HUD 1 Map Filters NONE Filters NONE Steam 1 RUN: ec9c7106-5151-44ed-9972-6cd3982cec89